fUST/lending_fUST_20260309
["ID","MTS","AMOUNT","RATE_DAILY","PERIOD"]
[408043892,1773066711616,-500.0,0.00027397,120]
[408043893,1773066711660,-1649.31,0.00027397,120]
[408043894,1773066711705,-1649.31,0.00027397,120]
[408043895,1773066711749,-500.0,0.00027397,120]
[408043896,1773066711792,-1649.31,0.00027397,120]
[408043897,1773066711834,-500.0,0.00027397,120]
[408043898,1773066711880,-1649.31,0.00027397,120]
[408043899,1773066711922,-500.0,0.00027397,120]
[408043900,1773066711963,-1649.31,0.00027397,120]
[408043901,1773066712003,-500.0,0.00027397,120]
[408043902,1773066712044,-1649.31,0.00027397,120]
[408043903,1773066712085,-500.0,0.00027397,120]
[408043904,1773066712126,-1649.31,0.00027397,120]
[408043905,1773066712167,-500.0,0.00027397,120]
[408043906,1773066712210,-1649.31,0.00027397,120]
[408043907,1773066712252,-500.0,0.00027397,120]
[408043908,1773066712292,-1167.58,0.00027397,120]
[408043909,1773066712335,-1649.31,0.00027397,120]
[408043910,1773066712375,-1167.58,0.00027397,120]
[408043911,1773066712416,-500.0,0.00027397,120]
[408043912,1773066712461,-1649.31,0.00027397,120]
[408043913,1773066712504,-1167.58,0.00027397,120]
[408043914,1773066712546,-500.0,0.00027397,120]
[408043915,1773066712590,-1649.31,0.00027397,120]
[408043916,1773066712634,-1167.67759447,0.00027397,120]
[408043917,1773066712676,-828.989808,0.00027397,120]
[408043918,1773066712717,-500.0,0.00027397,120]
[408043919,1773066712760,-1649.31,0.00027397,120]
[408043920,1773066712802,-500.0,0.00027397,120]
[408043921,1773066712844,-1649.31,0.00027397,120]
[408043922,1773066712887,-500.0,0.00027397,120]
[408043923,1773066712928,-1649.31,0.00027397,120]
[408043924,1773066712968,-500.0,0.00027397,120]
[408043925,1773066713243,-1649.31,0.00027397,120]
[408043926,1773066713299,-500.0,0.00027397,120]
[408043927,1773066713354,-1649.31,0.00027397,120]
[408043928,1773066713405,-500.0,0.00027397,120]
[408043929,1773066713460,-1649.31,0.00027397,120]
[408043930,1773066713521,-500.0,0.00027397,120]
[408043931,1773066713574,-1649.33301648,0.00027397,120]
[408043932,1773066713624,-500.0,0.00027397,120]
[408043933,1773066713675,-500.0,0.00027397,120]
[408043934,1773066713732,-500.0,0.00027397,120]
[408043935,1773066713784,-500.0,0.00027397,120]
[408043936,1773066713836,-500.0,0.00027397,120]
[408043937,1773066713889,-500.0,0.00027397,120]
[408043938,1773066713941,-500.0,0.00027397,120]
[408043939,1773066713991,-500.0,0.00027397,120]
[408043940,1773066714049,-500.0,0.00027397,120]
[408043941,1773066714101,-500.0,0.00027397,120]
[408043942,1773066714151,-500.0,0.00027397,120]
[408043943,1773066714201,-500.0,0.00027397,120]
[408043944,1773066714250,-500.0,0.00027397,120]
[408043945,1773066714298,-709.11,0.00027397,120]
[408043946,1773066714355,-709.11,0.00027397,120]
[408043947,1773066714409,-709.11,0.00027397,120]
[408043948,1773066714461,-709.11,0.00027397,120]
[408043949,1773066714518,-684.47,0.00027397,120]
[408043950,1773066714569,-709.11,0.00027397,120]
[408043951,1773066714614,-684.47,0.00027397,120]
[408043952,1773066714660,-709.11,0.00027397,120]
[408043953,1773066714707,-684.47,0.00027397,120]
[408043954,1773066714753,-709.11,0.00027397,120]
[408043955,1773066714798,-684.47,0.00027397,120]
[408043956,1773066714842,-709.11,0.00027397,120]
[408043957,1773066714886,-684.47,0.00027397,120]
[408043958,1773066714929,-709.11,0.00027397,120]
[408043959,1773066714973,-684.47,0.00027397,120]
[408043960,1773066715016,-709.11,0.00027397,120]
[408043961,1773066715059,-684.47,0.00027397,120]
[408043962,1773066715104,-709.11,0.00027397,120]
[408043963,1773066715152,-684.47,0.00027397,120]
[408043964,1773066715202,-709.11,0.00027397,120]
[408043965,1773066715253,-684.47,0.00027397,120]
[408043966,1773066715304,-709.11,0.00027397,120]
[408043967,1773066715354,-684.47,0.00027397,120]
[408043968,1773066715403,-709.11,0.00027397,120]
[408043969,1773066715450,-684.47,0.00027397,120]
[408043970,1773066715497,-709.11,0.00027397,120]
[408043971,1773066715545,-500.0,0.00027397,120]
[408043972,1773066715591,-709.11,0.00027397,120]
[408043973,1773066715634,-684.47,0.00027397,120]
[408043974,1773066715676,-709.11,0.00027397,120]
[408043975,1773066715723,-153.91057561,0.00027397,120]
[408043976,1773066715767,-684.47,0.00027397,120]
[408043977,1773066715811,-709.11,0.00027397,120]
[408043978,1773066715852,-684.47,0.00027397,120]
[408043979,1773066715895,-2086.47,0.00027397,120]
[408043980,1773066715938,-709.11,0.00027397,120]
[408043981,1773066715985,-684.47,0.00027397,120]
[408043982,1773066716037,-709.11,0.00027397,120]
[408043983,1773066716091,-684.47,0.00027397,120]
[408043984,1773066716143,-2086.47,0.00027397,120]
[408043985,1773066716198,-709.11,0.00027397,120]
[408043986,1773066716251,-684.47,0.00027397,120]
[408043987,1773066716300,-2086.47,0.00027397,120]
[408043988,1773066716351,-709.11,0.00027397,120]
[408043989,1773066716401,-2086.47,0.00027397,120]
[408043990,1773066716450,-684.47,0.00027397,120]
[408043991,1773066716500,-709.11,0.00027397,120]
[408043992,1773066716548,-2086.47,0.00027397,120]
[408043993,1773066716593,-684.47,0.00027397,120]
[408043994,1773066716637,-709.12301452,0.00027397,120]
[408043995,1773066716682,-2086.47,0.00027397,120]
[408043996,1773066716727,-684.47,0.00027397,120]
[408043997,1773066716770,-2033.91,0.00027397,120]
[408043998,1773066716811,-2086.47,0.00027397,120]
[408043999,1773066716853,-684.47,0.00027397,120]
[408044000,1773066716898,-2033.91,0.00027397,120]
[408044001,1773066716942,-2086.47,0.00027397,120]
[408044002,1773066716986,-2033.91,0.00027397,120]
[408044003,1773066717032,-2033.91,0.00027397,120]
[408044004,1773066717079,-684.47,0.00027397,120]
[408044005,1773066717123,-2086.47,0.00027397,120]
[408044006,1773066717165,-2033.91,0.00027397,120]
[408044007,1773066717209,-684.47,0.00027397,120]
[408044008,1773066717251,-2086.47,0.00027397,120]
[408044009,1773066717293,-2033.91,0.00027397,120]
[408044010,1773066717335,-684.56616453,0.00027397,120]
[408044011,1773066717378,-2086.47,0.00027397,120]
[408044012,1773066717636,-2033.91,0.00027397,120]
[408044013,1773066717687,-2086.47,0.00027397,120]
[408044014,1773066717746,-2033.91,0.00027397,120]
[408044015,1773066717803,-2086.47,0.00027397,120]
[408044016,1773066717867,-2033.91,0.00027397,120]
[408044017,1773066717915,-2086.47,0.00027397,120]
[408044018,1773066717962,-2033.91,0.00027397,120]
[408044019,1773066718006,-2086.47,0.00027397,120]
[408044020,1773066718048,-500.0,0.00027397,120]
[408044021,1773066718094,-2033.91,0.00027397,120]
[408044022,1773066718137,-500.0,0.00027397,120]
[408044023,1773066718185,-2086.47,0.00027397,120]
[408044024,1773066718229,-500.0,0.00027397,120]
[408044025,1773066718275,-2033.91,0.00027397,120]
[408044026,1773066718321,-500.0,0.00027397,120]
[408044027,1773066718368,-2086.47,0.00027397,120]
[408044028,1773066718418,-2033.91,0.00027397,120]
[408044029,1773066718467,-500.0,0.00027397,120]
[408044030,1773066718521,-500.0,0.00027397,120]
[408044031,1773066718573,-2086.47,0.00027397,120]
[408044032,1773066718622,-500.0,0.00027397,120]
[408044033,1773066718671,-2033.91,0.00027397,120]
[408044034,1773066718721,-500.0,0.00027397,120]
[408044035,1773066718770,-500.0,0.00027397,120]
[408044036,1773066718817,-2086.47,0.00027397,120]
[408044037,1773066718864,-500.0,0.00027397,120]
[408044038,1773066718915,-2033.91,0.00027397,120]
[408044039,1773066718961,-500.0,0.00027397,120]
[408044040,1773066719005,-500.0,0.00027397,120]
[408044041,1773066719048,-2086.47,0.00027397,120]
[408044042,1773066719097,-500.0,0.00027397,120]
[408044043,1773066719145,-2033.91,0.00027397,120]
[408044044,1773066719197,-500.0,0.00027397,120]
[408044045,1773066719240,-500.0,0.00027397,120]
[408044046,1773066719282,-2086.47,0.00027397,120]
[408044047,1773066719329,-500.0,0.00027397,120]
[408044048,1773066719394,-2033.91,0.00027397,120]
[408044049,1773066719445,-500.0,0.00027397,120]
[408044050,1773066719499,-500.0,0.00027397,120]
[408044051,1773066719548,-2086.47,0.00027397,120]
[408044052,1773066719598,-500.0,0.00027397,120]
[408044053,1773066719648,-500.0,0.00027397,120]
[408044054,1773066719695,-479.89815271,0.00027397,120]
[408044055,1773066719741,-2033.91,0.00027397,120]
[408044056,1773066719790,-2086.47,0.00027397,120]
[408044057,1773066719832,-500.0,0.00027397,120]
[408044058,1773066719877,-500.0,0.00027397,120]
[408044059,1773066719921,-2086.66541734,0.00027397,120]
[408044060,1773066719966,-2033.91,0.00027397,120]
[408044061,1773066720013,-500.0,0.00027397,120]
[408044062,1773066720062,-500.0,0.00027397,120]
[408044063,1773066720116,-2033.91,0.00027397,120]
[408044064,1773066720169,-500.0,0.00027397,120]
[408044065,1773066720222,-500.0,0.00027397,120]
[408044066,1773066720280,-2033.91,0.00027397,120]
[408044067,1773066720336,-500.0,0.00027397,120]
[408044068,1773066720389,-500.0,0.00027397,120]
[408044069,1773066720439,-604.84856805,0.00027397,120]
[408044070,1773066720491,-500.0,0.00027397,120]
[408044071,1773066720542,-500.0,0.00027397,120]
[408044072,1773066720592,-210.2968028,0.00027397,120]
[408044073,1773066720637,-725.93,0.00027397,120]
[408044074,1773066720683,-512.23967633,0.00027397,120]
[408044075,1773066720730,-2033.91,0.00027397,120]
[408044076,1773066720775,-2033.91,0.00027397,120]
[408044077,1773066720820,-725.93,0.00027397,120]
[408044078,1773066720866,-2033.92078063,0.00027397,120]
[408044079,1773066720909,-725.93,0.00027397,120]
[408044080,1773066720952,-725.93,0.00027397,120]
[408044081,1773066720995,-725.93,0.00027397,120]
[408044082,1773066721045,-725.93,0.00027397,120]
[408044083,1773066721104,-986.25,0.00027397,120]
[408044084,1773066721155,-725.93,0.00027397,120]
[408044085,1773066721204,-986.25,0.00027397,120]
[408044086,1773066721253,-725.93,0.00027397,120]
[408044087,1773066721302,-573.23,0.00027397,120]
[408044088,1773066721350,-986.25,0.00027397,120]
[408044089,1773066721398,-725.93,0.00027397,120]
[408044090,1773066721447,-251.39012503,0.00027397,120]
[408044091,1773066726694,-27099.6800764,0.00035958,30]
[408044092,1773066726752,-500.0,0.00035958,120]
[408044093,1773066726830,-500.0,0.00035958,120]
[408044094,1773066726901,-500.0,0.00035958,120]
[408044095,1773066726974,-500.0,0.00035958,120]
[408044096,1773066727050,-500.0,0.00035958,120]
[408044097,1773066727118,-500.0,0.00035958,120]
[408044098,1773066727172,-500.0,0.00035958,120]
[408044099,1773066727219,-500.0,0.00035958,120]
[408044100,1773066727261,-500.0,0.00035958,120]
[408044101,1773066727301,-613.84909359,0.00035958,120]
[408044102,1773066727343,-1000.0,0.00035958,120]
[408044103,1773066727384,-2052.7241293,0.00035958,120]
[408044104,1773066727430,-900.78533035,0.00035958,120]
[408044105,1773066727477,-10008.78469049,0.00035958,120]
[408044106,1773066727530,-153538.0,0.00035958,30]
[408044107,1773066727581,-1000.0,0.00035958,31]
[408044108,1773066727628,-607.147135,0.00035958,120]
[408044109,1773066727678,-684.521,0.00035958,120]
[408044110,1773066727724,-684.521,0.00035958,120]
[408044111,1773066727771,-684.521,0.00035958,120]
[408044112,1773066727814,-684.521,0.00035958,120]
[408044113,1773066727857,-500.0,0.00035958,120]
[408044114,1773066727898,-3000.0,0.00035958,120]
[408044115,1773066728164,-500.0,0.00035958,120]
[408044116,1773066728220,-500.0,0.00035958,120]
[408044117,1773066728269,-500.0,0.00035958,120]
[408044118,1773066728321,-535.37041734,0.00035958,120]
[408044119,1773066728373,-500.0,0.00035958,120]
[408044120,1773066728426,-500.0,0.00035958,120]
[408044121,1773066728481,-500.0,0.00035958,120]
[408044122,1773066728533,-500.0,0.00035958,120]
[408044123,1773066728583,-500.0,0.00035958,120]
[408044124,1773066728634,-500.0,0.00035958,120]
[408044125,1773066728686,-500.0,0.00035958,120]
[408044126,1773066728736,-500.0,0.00035958,120]
[408044127,1773066728785,-646.51975307,0.00035958,120]
[408044128,1773066728834,-500.0,0.00035958,120]
[408044129,1773066728881,-500.0,0.00035958,120]
[408044130,1773066728928,-500.0,0.00035958,120]
[408044131,1773066728974,-500.0,0.00035958,120]
[408044132,1773066729018,-500.0,0.00035958,120]
[408044133,1773066729062,-500.0,0.00035958,120]
[408044134,1773066729111,-500.0,0.00035958,120]
[408044135,1773066729162,-444.23,0.00035958,120]
[408044136,1773066729213,-684.521,0.00035958,120]
[408044137,1773066729267,-684.521,0.00035958,120]
[408044138,1773066729321,-684.521,0.00035958,120]
[408044139,1773066729367,-684.521,0.00035958,120]
[408044140,1773066729412,-500.0,0.00035958,120]
[408044141,1773066729457,-500.0,0.00035958,120]
[408044142,1773066729503,-500.0,0.00035958,120]
[408044143,1773066729549,-500.0,0.00035958,120]
[408044144,1773066729594,-500.0,0.00035958,120]
[408044145,1773066729639,-500.0,0.00035958,120]
[408044146,1773066729685,-500.0,0.00035958,120]
[408044147,1773066729731,-500.0,0.00035958,120]
[408044148,1773066729776,-502.01089657,0.00035958,120]
[408044149,1773066729820,-1159.5,0.00035958,120]
[408044150,1773066729864,-1159.5,0.00035958,120]
[408044151,1773066729907,-1159.5,0.00035958,120]
[408044152,1773066729948,-1159.5,0.00035958,120]
[408044153,1773066729988,-1159.5,0.00035958,120]
[408044154,1773066730028,-1159.5,0.00035958,120]
[408044155,1773066730067,-1159.5,0.00035958,120]
[408044156,1773066730109,-1159.5,0.00035958,120]
[408044157,1773066730151,-1159.5,0.00035958,120]
[408044158,1773066730194,-1159.5,0.00035958,120]
[408044159,1773066730239,-1159.5,0.00035958,120]
[408044160,1773066730282,-1159.5,0.00035958,120]
[408044161,1773066730323,-1159.5,0.00035958,120]
[408044162,1773066730364,-1159.5,0.00035958,120]
[408044163,1773066730407,-1159.5,0.00035958,120]
[408044164,1773066730451,-1159.5,0.00035958,120]
[408044165,1773066730496,-1159.5,0.00035958,120]
[408044166,1773066730545,-1159.5,0.00035958,120]
[408044167,1773066730590,-1159.5,0.00035958,120]
[408044168,1773066730634,-1159.5,0.00035958,120]
[408044169,1773066730676,-1159.5,0.00035958,120]
[408044170,1773066730720,-1159.5,0.00035958,120]
[408044171,1773066730764,-1159.5,0.00035958,120]
[408044172,1773066730810,-1159.53313626,0.00035958,120]
[408044173,1773066730854,-1857.76934369,0.00035958,30]
[408044174,1773066730898,-291.86977624,0.00035958,120]
[408044175,1773066730943,-1579.42604449,0.00035958,30]
[408044176,1773066730988,-1252.99707482,0.00035958,30]
[408044177,1773066731033,-1026.6844839,0.00035958,120]
[408044178,1773066731079,-974.54239895,0.00035958,120]
[408044179,1773066731127,-1097.55116773,0.00035958,60]
[408044180,1773066731176,-2153.55550546,0.00035958,120]
[408044181,1773066731225,-735.6690627,0.00035958,120]
[408044182,1773066731277,-279.67841603,0.00035958,120]
[408044183,1773066731327,-205.70640051,0.00035958,30]
[408044184,1773066731375,-595.15505544,0.00035958,30]
[408044185,1773066731424,-1971.86251812,0.00035958,120]
[408044186,1773066731472,-786.46506295,0.00035958,30]
[408044187,1773066731523,-1176.13116989,0.00035958,120]
[408044188,1773066731573,-1451.36152949,0.00035958,120]
[408044189,1773066731616,-378.34816496,0.00035958,120]
[408044190,1773066731659,-1949.56143369,0.00035958,30]
[408044191,1773066731701,-1072.44756911,0.00035958,120]
[408044192,1773066731741,-253.72221391,0.00035958,30]
[408044193,1773066731780,-1531.48562013,0.00035958,120]
[408044194,1773066731823,-2075.08053813,0.00035958,120]
[408044195,1773066731864,-1512.8196977,0.00035958,120]
[408044196,1773066731905,-372.88388977,0.00035958,30]
[408044197,1773066731946,-939.86569316,0.00035958,120]
[408044198,1773066731988,-1605.31653998,0.00035958,120]
[408044199,1773066732030,-1967.18093439,0.00035958,60]
[408044200,1773066732075,-2219.95168812,0.00035958,30]
[408044201,1773066732124,-1250.76069994,0.00035958,30]
[408044202,1773066732169,-555.63380745,0.00035958,120]
[408044203,1773066732398,-228.96297486,0.00035958,120]
[408044204,1773066732448,-335.93832562,0.00035958,120]
[408044205,1773066732496,-539.67745748,0.00035958,30]
[408044206,1773066732545,-188.80367789,0.00035958,30]
[408044207,1773066732609,-190.54192361,0.00035958,30]
[408044208,1773066732660,-579.52785243,0.00035958,120]
[408044209,1773066732712,-1978.0097964,0.00035958,60]
[408044210,1773066732759,-172.28308446,0.00035958,120]
[408044211,1773066732806,-235.88227914,0.00035958,30]
[408044212,1773066732850,-2119.67675641,0.00035958,120]
[408044213,1773066732894,-1691.27368005,0.00035958,120]
[408044214,1773066732942,-1054.28622618,0.00035958,120]
[408044215,1773066732984,-1597.11039547,0.00035958,30]
[408044216,1773066733027,-1000.0,0.00035958,30]
[408044217,1773066733074,-365.16151003,0.00035958,120]
[408044218,1773066733123,-1869.91183792,0.00035958,120]
[408044219,1773066733174,-375.38178149,0.00035958,120]
[408044220,1773066733223,-180.91320544,0.00035958,120]
[408044221,1773066733268,-1050.01517415,0.00035958,60]
[408044222,1773066733310,-561.54852412,0.00035958,120]
[408044223,1773066733357,-517.62047341,0.00035958,120]
[408044224,1773066733408,-1271.92605682,0.00035958,60]
[408044225,1773066733460,-484.26820434,0.00035958,120]
[408044226,1773066733511,-2075.55753296,0.00035958,120]
[408044227,1773066733563,-202.82371858,0.00035958,120]
[408044228,1773066733613,-165.87517356,0.00035958,120]
[408044229,1773066733661,-1831.094411,0.00035958,30]
[408044230,1773066733708,-1033.25046758,0.00035958,30]
[408044231,1773066733754,-345.28595442,0.00035958,30]
[408044232,1773066733801,-329.63509808,0.00035958,30]
[408044233,1773066733845,-159.79734752,0.00035958,30]
[408044234,1773066733891,-1025.90347018,0.00035958,120]
[408044235,1773066733936,-1034.03394695,0.00035958,120]
[408044236,1773066733980,-200.0,0.00035958,120]
[408044237,1773066734022,-161.79798882,0.00035958,120]
[408044238,1773066734070,-336.80125529,0.00035958,30]
[408044239,1773066734116,-159.39609251,0.00035958,120]
[408044240,1773066734159,-974.11081138,0.00035958,120]
[408044241,1773066734202,-3000.0,0.00035958,30]
[408044242,1773066734246,-2269.49454736,0.00035958,120]
[408044243,1773066734290,-3363.13519586,0.00035958,30]
[408044244,1773066734338,-2594.19700487,0.00035958,120]
[408044245,1773066734383,-2526.35914525,0.00035958,30]
[408044246,1773066734431,-2572.01,0.00035958,32]
[408044247,1773066734481,-2300.0,0.00035958,120]
[408044248,1773066734529,-3281.99256863,0.00035958,120]
[408044249,1773066734577,-2791.14263974,0.00035958,120]
[408044250,1773066734621,-2238.96957226,0.00035958,120]
[408044251,1773066734667,-2758.0,0.00035958,120]
[408044252,1773066734717,-3216.77057023,0.00035958,30]
[408044253,1773066734762,-2909.5549594,0.00035958,31]
[408044254,1773066734804,-2467.62214029,0.00035958,60]
[408044255,1773066734846,-3049.14205695,0.00035958,120]
[408044256,1773066734890,-5002.45171998,0.00035958,120]
[408044257,1773066734933,-500.0,0.00035958,120]
[408044258,1773066734975,-3218.0,0.00035958,120]
[408044259,1773066735016,-2000.0,0.00035958,120]
[408044260,1773066735058,-2000.0,0.00035958,120]
[408044261,1773066735101,-2000.0,0.00035958,120]
[408044262,1773066735146,-2000.0,0.00035958,120]
[408044263,1773066735193,-2000.0,0.00035958,120]
[408044264,1773066735243,-2000.0,0.00035958,120]
[408044265,1773066735291,-2000.0,0.00035958,120]
[408044266,1773066735343,-2000.0,0.00035958,120]
[408044267,1773066735396,-2000.0,0.00035958,120]
[408044268,1773066735451,-2000.0,0.00035958,120]
[408044269,1773066735504,-2000.0,0.00035958,120]
[408044270,1773066735559,-2000.0,0.00035958,120]
[408044271,1773066735607,-2000.0,0.00035958,120]
[408044272,1773066735649,-2000.0,0.00035958,120]
[408044273,1773066735692,-2000.0,0.00035958,120]
[408044274,1773066735735,-2000.0,0.00035958,120]
[408044275,1773066735777,-2000.0,0.00035958,120]
[408044276,1773066735822,-2000.0,0.00035958,120]
[408044277,1773066735870,-2000.0,0.00035958,120]
[408044278,1773066735917,-2000.0,0.00035958,120]
[408044279,1773066735964,-2000.0,0.00035958,120]
[408044280,1773066736013,-758.06453647,0.00035958,120]
[408044281,1773066736062,-956.75,0.00035958,120]
[408044282,1773066736114,-956.75,0.00035958,120]
[408044283,1773066736168,-956.75,0.00035958,120]
[408044284,1773066736220,-956.75,0.00035958,120]
[408044285,1773066736271,-956.75,0.00035958,120]
[408044286,1773066736325,-956.75,0.00035958,120]
[408044287,1773066736378,-956.75,0.00035958,120]
[408044288,1773066736431,-956.75,0.00035958,120]
[408044289,1773066736484,-956.75,0.00035958,120]
[408044290,1773066736531,-956.75,0.00035958,120]
[408044291,1773066736578,-956.75,0.00035958,120]
[408044292,1773066736836,-956.75,0.00035958,120]
[408044293,1773066736888,-956.75,0.00035958,120]
[408044294,1773066736938,-956.75,0.00035958,120]
[408044295,1773066736984,-956.75,0.00035958,120]
[408044296,1773066737031,-956.75,0.00035958,120]
[408044297,1773066737087,-956.75,0.00035958,120]
[408044298,1773066737138,-956.75,0.00035958,120]
[408044299,1773066737191,-956.75,0.00035958,120]
[408044300,1773066737242,-956.75,0.00035958,120]
[408044301,1773066737293,-956.75,0.00035958,120]
[408044302,1773066737350,-956.75,0.00035958,120]
[408044303,1773066737403,-956.75,0.00035958,120]
[408044304,1773066737454,-956.81,0.00035958,120]
[408044305,1773066737500,-100000.0,0.00035958,30]
[408044306,1773066737551,-500.0,0.00035958,120]
[408044307,1773066737599,-500.0,0.00035958,120]
[408044308,1773066737649,-500.0,0.00035958,120]
[408044309,1773066737703,-587.49877408,0.00035958,120]
[408044310,1773066737753,-205.75194577,0.00035958,120]
[408044311,1773066737807,-5016.50565653,0.00035958,120]
[408044312,1773066737861,-390.0,0.00035958,60]
[408044313,1773066737912,-460.09338,0.00035958,60]
[408044314,1773066737966,-797.88995,0.00035958,60]
[408044315,1773066738012,-797.88995,0.00035958,60]
[408044316,1773066738063,-797.88995,0.00035958,60]
[408044317,1773066738115,-797.88995,0.00035958,60]
[408044318,1773066738161,-797.88995,0.00035958,60]
[408044319,1773066738205,-778.25777733,0.00035958,30]
[408044320,1773066738258,-1651.93494279,0.00035958,120]
[408044321,1773066738326,-431.13627967,0.00035958,120]
[408044322,1773066738405,-178.34767591,0.00035958,30]
[408044323,1773066738487,-13767.38,0.00035958,120]
[408044324,1773066738568,-261.91351551,0.00035958,120]
[408044325,1773066738640,-10413.0,0.00035958,120]
[408044326,1773066738693,-1000.0,0.00035958,120]
[408044327,1773066738745,-1000.0,0.00035958,120]
[408044328,1773066738800,-1000.0,0.00035958,120]
[408044329,1773066738855,-1000.0,0.00035958,120]
[408044330,1773066738907,-1000.0,0.00035958,120]
[408044331,1773066738958,-1000.0,0.00035958,120]
[408044332,1773066739006,-1000.0,0.00035958,120]
[408044333,1773066739056,-1000.0,0.00035958,120]
[408044334,1773066739111,-1000.0,0.00035958,120]
[408044335,1773066739165,-1000.0,0.00035958,120]
[408044336,1773066739219,-1000.0,0.00035958,120]
[408044337,1773066739268,-1000.0,0.00035958,120]
[408044338,1773066739316,-1000.0,0.00035958,120]
[408044339,1773066739365,-1000.0,0.00035958,120]
[408044340,1773066739416,-1000.0,0.00035958,120]
[408044341,1773066739464,-1000.0,0.00035958,120]
[408044342,1773066739519,-1000.0,0.00035958,120]
[408044343,1773066739568,-1000.0,0.00035958,120]
[408044344,1773066739616,-1000.0,0.00035958,120]
[408044345,1773066739663,-1000.0,0.00035958,120]
[408044346,1773066739711,-951.0,0.00035958,120]
[408044347,1773066739756,-384.18,0.00035958,120]
[408044348,1773066739798,-500.0,0.00035958,120]
[408044349,1773066739842,-500.0,0.00035958,120]
[408044350,1773066739888,-500.0,0.00035958,120]
[408044351,1773066739932,-500.0,0.00035958,120]
[408044352,1773066739979,-500.0,0.00035958,120]
[408044353,1773066740025,-500.0,0.00035958,120]
[408044354,1773066740070,-231.49405991,0.00035958,120]
[408044355,1773066740120,-11609.56,0.00035958,60]
[408044356,1773066740167,-2228.25621752,0.00035958,120]
[408044357,1773066740214,-7596.4984065,0.00035958,30]
[408044358,1773066740264,-6669.33297751,0.00035958,120]
[408044359,1773066740312,-2000.0,0.00035958,31]
[408044360,1773066740362,-1546.0,0.00035958,62]
[408044361,1773066740411,-20000.0,0.00035958,30]
[408044362,1773066740460,-15000.0,0.00035958,45]
[408044363,1773066740509,-50000.0,0.00035958,120]
[408044364,1773066740557,-20000.0,0.00035958,90]
[408044365,1773066740601,-5093.57865823,0.00035958,120]
[408044366,1773066740644,-10000.0,0.00035958,90]
[408044367,1773066740689,-10000.0,0.00035958,60]
[408044368,1773066740736,-30000.0,0.00035958,30]
[408044369,1773066740778,-2311.45945332,0.00035958,120]
[408044370,1773066740819,-505.29296706,0.00035958,31]
[408044371,1773066740861,-20000.0,0.00035958,120]
[408044372,1773066740912,-186337.71,0.00035958,30]
[408044373,1773066740958,-4001.0,0.00035958,120]
[408044374,1773066741006,-152.0,0.00035958,120]
[408044375,1773066741056,-9455.28198792,0.00035958,31]
[408044376,1773066741104,-100000.0,0.00035958,30]
[408044377,1773066741153,-6633.62706478,0.00035958,30]
[408044378,1773066741387,-26661.16,0.00035958,120]
[408044379,1773066741439,-171.0,0.00035958,120]
[408044380,1773066741493,-3000.0,0.00035958,30]
[408044381,1773066741538,-14580.0,0.00035958,90]
[408044382,1773066741585,-1704.42672477,0.00035958,120]
[408044383,1773066741631,-272.39514205,0.00035958,120]
[408044384,1773066741674,-50270.0,0.00035958,30]
[408044385,1773066741720,-13608.96526737,0.00035958,120]
[408044386,1773066741767,-86572.41,0.00035958,30]
[408044387,1773066741808,-13000.05366527,0.00035958,120]
[408044388,1773066741850,-154.66822733,0.00035958,30]
[408044389,1773066741892,-227.90622383,0.00035958,30]
[408044390,1773066741935,-821.53850743,0.00035958,120]
[408044391,1773066741978,-105173.14887458,0.00035958,120]